[Event "FIDE WSTC Open 65 2025"]
[Site "Prague"]
[Date "2025.02.17"]
[Round "1.41"]
[White "Lauritzen, Einar"]
[Black "Birnboim, Nathan"]
[Result "*"]
[Annotator "ChessBase"]
[ECO "A48"]
[WhiteElo "1965"]
[BlackElo "2313"]
[PlyCount "58"]
[EventDate "2025.02.17"]
[EventType "team-tourn"]
[EventCountry "CZE"]
[SourceTitle "playchess.com"]
[Source "ChessBase"]
[SourceQuality "1"]
[TimeControl "40/5400+30:1800+30"]

1. d4 {[%emt 0:00:02]} Nf6 {[%emt 0:00:04]} 2. Nf3 {[%emt 0:00:14]} g6 {[%emt 0:00:16]} 3. Bf4 {[%emt 0:00:49]} Bg7 {[%emt 0:00:58]} 4. e3 {[%emt 0:00:28]} d6 {[%emt 0:01:55]} 5. h3 {[%emt 0:00:42]} Nbd7 {[%emt 0:01:16]} 6. Bc4 {[%emt 0:03:58]} O-O {[%emt 0:13:17]} 7. O-O {[%emt 0:01:31]} a6 {[%emt 0:01:27]} 8. a4 {[%emt 0:01:27]} b6 {[%emt 0:00:37]} 9. Nbd2 {[%emt 0:02:12]} Bb7 {[%emt 0:00:21]} 10. c3 {[%emt 0:00:49]} Qe8 {[%emt 0:01:14]} 11. Bh2 {[%emt 0:04:03]} e5 {[%emt 0:02:41]} 12. Qe2 {[%emt 0:06:30]} Qe7 {[%emt 0:07:04]} 13. b4 {[%emt 0:08:43]} Ne8 {[%emt 0:06:59]} 14. b5 {[%emt 0:03:23]} a5 {[%emt 0:00:22]} 15. Ne1 {[%emt 0:04:17]} Kh8 {[%emt 0:02:20]} 16. f4 {[%emt 0:03:25]} f5 {[%emt 0:02:06]} 17. Nef3 {[%emt 0:01:51]} exd4 {[%emt 0:09:18]} 18. exd4 {[%emt 0:00:49]} Qxe2 {[%emt 0:00:16]} 19. Bxe2 {[%emt 0:00:13]} Nef6 {[%emt 0:00:29]} 20. Bc4 {[%emt 0:03:54]} Rae8 {[%emt 0:01:36]} 21. Rae1 {[%emt 0:01:27]} Nd5 {[%emt 0:13:05]} 22. Bxd5 {[%emt 0:02:16]} Bxd5 {[%emt 0:00:12]} 23. Rxe8 {[%emt 0:00:30]} Rxe8 {[%emt 0:00:15]} 24. Re1 {[%emt 0:02:01]} Rxe1+ {[%emt 0:02:36]} 25. Nxe1 {[%emt 0:00:00]} Nf6 {[%emt 0:02:11]} 26. Kf2 {[%emt 0:00:36]} Ne4+ {[%emt 0:00:36]} 27. Nxe4 {[%emt 0:00:30]} Bxe4 {[%emt 0:00:13]} 28. g3 {[%emt 0:03:30]} Kg8 {[%emt 0:02:33]} 29. Ke3 {[%emt 0:01:09]} Kf7 {[%emt 0:00:41]} *

[Event "FIDE WSTC Open 65 2025"]
[Site "Prague"]
[Date "2025.02.17"]
[Round "1.42"]
[White "Maryasin, Boris"]
[Black "Bjornes, Leif"]
[Result "1-0"]
[Annotator "ChessBase"]
[ECO "B42"]
[WhiteElo "2218"]
[BlackElo "1931"]
[PlyCount "45"]
[EventDate "2025.02.17"]
[EventType "team-tourn"]
[EventCountry "CZE"]
[SourceTitle "playchess.com"]
[Source "ChessBase"]
[SourceQuality "1"]
[TimeControl "40/5400+30:1800+30"]

1. e4 {[%emt 0:00:07]} c5 {[%emt 0:00:38]} 2. Nf3 {[%emt 0:00:08]} e6 {[%emt 0:00:15]} 3. d4 {[%emt 0:00:40]} cxd4 {[%emt 0:00:52]} 4. Nxd4 {[%emt 0:00:00]} a6 {[%emt 0:00:19]} 5. Bd3 {[%emt 0:00:07]} Qc7 {[%emt 0:00:37]} 6. O-O {[%emt 0:00:27]} Nf6 {[%emt 0:00:24]} 7. c4 {[%emt 0:01:14]} b6 {[%emt 0:02:20]} 8. Nc3 {[%emt 0:00:43]} Bb7 {[%emt 0:00:37]} 9. Qe2 {[%emt 0:00:44]} d6 {[%emt 0:04:54]} 10. f4 {[%emt 0:05:09]} Nc6 {[%emt 0:08:40]} 11. Nxc6 {[%emt 0:01:25]} Bxc6 {[%emt 0:00:37]} 12. Nd5 {[%emt 0:05:05]} Qb7 {[%emt 0:15:37]} 13. b3 {[%emt 0:03:17]} Be7 {[%emt 0:15:57]} 14. Nxe7 {[%emt 0:01:07]} Qxe7 {[%emt 0:00:06]} 15. Ba3 {[%emt 0:01:01]} Nd7 {[%emt 0:01:12]} 16. Rad1 {[%emt 0:01:48]} Nc5 {[%emt 0:01:25]} 17. Bc2 {[%emt 0:04:50]} e5 {[%emt 0:07:45]} 18. b4 {[%emt 0:03:55]} Ne6 {[%emt 0:04:03]} 19. b5 {[%emt 0:00:26]} Nd4 {[%emt 0:12:01]} 20. Rxd4 {[%emt 0:00:23]} exd4 {[%emt 0:00:08]} 21. bxc6 {[%emt 0:00:11]} O-O {[%emt 0:00:34]} 22. e5 {[%emt 0:00:54]} Rfe8 {[%emt 0:08:45]} 23. Qd3 {[%emt 0:01:12]} 1-0

[Event "FIDE WSTC Open 65 2025"]
[Site "Prague"]
[Date "2025.02.17"]
[Round "1.43"]
[White "Bjornes, Leif"]
[Black "Lederman, Leon"]
[Result "1/2-1/2"]
[Annotator "ChessBase"]
[ECO "A56"]
[WhiteElo "1931"]
[BlackElo "2198"]
[PlyCount "84"]
[EventDate "2025.02.17"]
[EventType "team-tourn"]
[EventCountry "CZE"]
[SourceTitle "playchess.com"]
[Source "ChessBase"]
[SourceQuality "1"]
[TimeControl "40/5400+30:1800+30"]

1. d4 {[%emt 0:00:06]} Nf6 {[%emt 0:00:12]} 2. c4 {[%emt 0:00:08]} c5 {[%emt 0:00:04]} 3. d5 {[%emt 0:00:18]} e5 {[%emt 0:00:05]} 4. Nc3 {[%emt 0:02:14]} d6 {[%emt 0:00:06]} 5. e4 {[%emt 0:04:31]} Be7 {[%emt 0:00:06]} 6. Nf3 {[%emt 0:01:49]} O-O {[%emt 0:00:07]} 7. Be2 {[%emt 0:04:14]} Ne8 {[%emt 0:00:56]} 8. Qc2 {[%emt 0:09:21]} Nd7 {[%emt 0:03:26]} 9. O-O {[%emt 0:05:29]} g6 {[%emt 0:00:40]} 10. Rb1 {[%emt 0:11:22]} Ng7 {[%emt 0:00:37]} 11. Ne1 {[%emt 0:01:40]} Bg5 {[%emt 0:02:40]} 12. Nf3 {[%emt 0:02:58]} Bf4 {[%emt 0:02:40]} 13. g3 {[%emt 0:00:40]} Bxc1 {[%emt 0:00:06]} 14. Qxc1 {[%emt 0:00:14]} f5 {[%emt 0:00:43]} 15. Qg5 {[%emt 0:00:22]} Nf6 {[%emt 0:00:45]} 16. Nd2 {[%emt 0:02:41]} Qe7 {[%emt 0:02:18]} 17. f3 {[%emt 0:03:54]} Nxd5 {[%emt 0:00:26]} 18. Qxe7 {[%emt 0:01:23]} Nxe7 {[%emt 0:00:06]} 19. Nd5 {[%emt 0:10:52]} Nc6 {[%emt 0:01:13]} 20. f4 {[%emt 0:05:11]} Be6 {[%emt 0:07:36]} 21. Rbd1 {[%emt 0:06:15]} Nd4 {[%emt 0:02:57]} 22. Bd3 {[%emt 0:01:10]} Bxd5 {[%emt 0:00:27]} 23. cxd5 {[%emt 0:01:35]} b5 {[%emt 0:00:35]} 24. fxe5 {[%emt 0:05:14]} dxe5 {[%emt 0:00:24]} 25. Nf3 {[%emt 0:01:32]} c4 {[%emt 0:38:05]} 26. Bb1 {[%emt 0:02:34]} Nxf3+ {[%emt 0:04:19]} 27. Rxf3 {[%emt 0:00:03]} Rad8 {[%emt 0:00:15]} 28. Ra3 {[%emt 0:01:06]} Rf7 {[%emt 0:00:51]} 29. Ra6 {[%emt 0:00:51]} Rfd7 {[%emt 0:08:17]} 30. Kf2 {[%emt 0:03:15]} fxe4 {[%emt 0:04:13]} 31. Bxe4 {[%emt 0:00:11]} Nf5 {[%emt 0:00:03]} 32. Re6 {[%emt 0:04:09]} Nd6 {[%emt 0:00:29]} 33. Ke3 {[%emt 0:00:12]} Re8 {[%emt 0:01:26]} 34. Rf1 {[%emt 0:02:08]} Ree7 {[%emt 0:03:47]} 35. Rff6 {[%emt 0:01:40]} Ne8 {[%emt 0:01:34]} 36. Rxe7 {[%emt 0:01:07]} Rxe7 {[%emt 0:00:07]} 37. Ra6 {[%emt 0:00:14]} Kg7 {[%emt 0:06:06]} 38. h3 {[%emt 0:04:23]} Nf6 {[%emt 0:03:58]} 39. g4 {[%emt 0:01:08]} g5 {[%emt 0:02:11]} 40. Ra5 {[%emt 0:00:53]} Rb7 {[%emt 0:04:44]} 41. d6 {[%emt 0:02:02]} Rb6 {[%emt 0:18:12]} 42. Rxa7+ {[%emt 0:00:33]} Kf8 {[%emt 0:00:04]} 1/2-1/2

[Event "FIDE WSTC Open 65 2025"]
[Site "Prague"]
[Date "2025.02.17"]
[Round "1.43"]
[White "Svanholm, Borge Waaktaar"]
[Black "Lederman, Leon"]
[Result "*"]
[Annotator "ChessBase"]
[ECO "A56"]
[WhiteElo "1913"]
[BlackElo "2198"]
[PlyCount "49"]
[EventDate "2025.02.17"]
[EventType "team-tourn"]
[EventCountry "CZE"]
[SourceTitle "playchess.com"]
[Source "ChessBase"]
[SourceQuality "1"]
[TimeControl "40/5400+30:1800+30"]

1. d4 {[%emt 0:00:06]} Nf6 {[%emt 0:00:12]} 2. c4 {[%emt 0:00:08]} c5 {[%emt 0:00:04]} 3. d5 {[%emt 0:00:18]} e5 {[%emt 0:00:05]} 4. Nc3 {[%emt 0:02:14]} d6 {[%emt 0:00:06]} 5. e4 {[%emt 0:04:31]} Be7 {[%emt 0:00:06]} 6. Nf3 {[%emt 0:01:49]} O-O {[%emt 0:00:07]} 7. Be2 {[%emt 0:04:14]} Ne8 {[%emt 0:00:56]} 8. Qc2 {[%emt 0:09:21]} Nd7 {[%emt 0:03:26]} 9. O-O {[%emt 0:05:29]} g6 {[%emt 0:00:40]} 10. Rb1 {[%emt 0:11:22]} Ng7 {[%emt 0:00:37]} 11. Ne1 {[%emt 0:01:40]} Bg5 {[%emt 0:02:40]} 12. Nf3 {[%emt 0:02:58]} Bf4 {[%emt 0:02:40]} 13. g3 {[%emt 0:00:40]} Bxc1 {[%emt 0:00:06]} 14. Qxc1 {[%emt 0:00:14]} f5 {[%emt 0:00:43]} 15. Qg5 {[%emt 0:00:22]} Nf6 {[%emt 0:00:45]} 16. Nd2 {[%emt 0:02:41]} Qe7 {[%emt 0:02:18]} 17. f3 {[%emt 0:03:54]} Nxd5 {[%emt 0:00:25]} 18. Qxe7 {[%emt 0:01:23]} Nxe7 {[%emt 0:00:06]} 19. Nd5 {[%emt 0:10:52]} Nc6 {[%emt 0:01:13]} 20. f4 {[%emt 0:05:11]} Be6 {[%emt 0:07:36]} 21. Rbd1 {[%emt 0:06:15]} Nd4 {[%emt 0:02:57]} 22. Bd3 {[%emt 0:01:10]} Bxd5 {[%emt 0:00:27]} 23. cxd5 {[%emt 0:01:35]} b5 {[%emt 0:00:35]} 24. fxe5 {[%emt 0:05:14]} dxe5 {[%emt 0:00:24]} 25. Nf3 {[%emt 0:01:32]} *

[Event "FIDE WSTC Open 65 2025"]
[Site "Prague"]
[Date "2025.02.17"]
[Round "1.44"]
[White "Gal, Moshe"]
[Black "Ortoft, Kai"]
[Result "*"]
[Annotator "NA"]
[ECO "E63"]
[WhiteElo "2059"]
[BlackElo "1985"]
[PlyCount "42"]
[EventDate "2025.02.17"]
[EventType "team-tourn"]
[EventCountry "CZE"]
[SourceTitle "playchess.com"]
[Source "ChessBase"]
[SourceQuality "1"]
[TimeControl "40/5400+30:1800+30"]

1. c4 {[%emt 0:00:04]} Nf6 {[%emt 0:00:29]} 2. Nc3 {[%emt 0:00:07]} g6 {[%emt 0:00:39]} 3. g3 {[%emt 0:00:35]} Bg7 {[%emt 0:00:40]} 4. Bg2 {[%emt 0:00:17]} O-O {[%emt 0:00:51]} 5. d4 {[%emt 0:00:19]} d6 {[%emt 0:01:36]} 6. h3 {[%emt 0:00:33]} Nc6 {[%emt 0:03:35]} 7. Nf3 {[%emt 0:01:22]} a6 {[%emt 0:01:46]} 8. O-O {[%emt 0:01:19]} Rb8 {[%emt 0:03:07]} 9. e4 {[%emt 0:05:19]} e5 {[%emt 0:04:39]} 10. Be3 {[%emt 0:04:50]} exd4 {[%emt 0:01:50]} 11. Nxd4 {[%emt 0:00:25]} Nxd4 {[%emt 0:01:49]} 12. Bxd4 {[%emt 0:00:15]} b5 {[%emt 0:04:57]} 13. cxb5 {[%emt 0:07:09]} Ne8 {[%emt 0:14:10]} 14. e5 {[%emt 0:08:59]} Bb7 {[%emt 0:04:45]} 15. Bxb7 {[%emt 0:07:30]} Rxb7 {[%emt 0:01:37]} 16. Qf3 {[%emt 0:06:11]} Qa8 {[%emt 0:03:49]} 17. a4 {[%emt 0:09:55]} dxe5 {[%emt 0:04:19]} 18. Bc5 {[%emt 0:00:32]} Nd6 {[%emt 0:00:20]} 19. Rfd1 {[%emt 0:04:48]} Rd8 {[%emt 0:02:46]} 20. Qc6 {[%emt 0:01:53]} axb5 {[%emt 0:06:35]} 21. Nxb5 {[%emt 0:02:03]} Qb8 {[%emt 0:03:28]} *

[Event "FIDE WSTC Open 65 2025"]
[Site "Prague"]
[Date "2025.02.17"]
[Round "1.44"]
[White "Gal, Moshe"]
[Black "Svanholm, Borge Waaktaar"]
[Result "1/2-1/2"]
[Annotator "ChessBase"]
[ECO "E63"]
[WhiteElo "2059"]
[BlackElo "1913"]
[PlyCount "87"]
[EventDate "2025.02.17"]
[EventType "team-tourn"]
[EventCountry "CZE"]
[SourceTitle "playchess.com"]
[Source "ChessBase"]
[SourceQuality "1"]
[TimeControl "40/5400+30:1800+30"]

1. c4 {[%emt 0:00:04]} Nf6 {[%emt 0:00:29]} 2. Nc3 {[%emt 0:00:07]} g6 {[%emt 0:00:39]} 3. g3 {[%emt 0:00:35]} Bg7 {[%emt 0:00:40]} 4. Bg2 {[%emt 0:00:17]} O-O {[%emt 0:00:51]} 5. d4 {[%emt 0:00:19]} d6 {[%emt 0:01:36]} 6. h3 {[%emt 0:00:33]} Nc6 {[%emt 0:03:35]} 7. Nf3 {[%emt 0:01:22]} a6 {[%emt 0:01:46]} 8. O-O {[%emt 0:01:19]} Rb8 {[%emt 0:03:07]} 9. e4 {[%emt 0:05:19]} e5 {[%emt 0:04:39]} 10. Be3 {[%emt 0:04:50]} exd4 {[%emt 0:01:50]} 11. Nxd4 {[%emt 0:00:25]} Nxd4 {[%emt 0:01:49]} 12. Bxd4 {[%emt 0:00:15]} b5 {[%emt 0:04:57]} 13. cxb5 {[%emt 0:07:09]} Ne8 {[%emt 0:14:10]} 14. e5 {[%emt 0:08:59]} Bb7 {[%emt 0:04:45]} 15. Bxb7 {[%emt 0:07:30]} Rxb7 {[%emt 0:01:37]} 16. Qf3 {[%emt 0:06:11]} Qa8 {[%emt 0:03:49]} 17. a4 {[%emt 0:09:55]} dxe5 {[%emt 0:04:19]} 18. Bc5 {[%emt 0:00:32]} Nd6 {[%emt 0:00:20]} 19. Rfd1 {[%emt 0:04:48]} Rd8 {[%emt 0:02:46]} 20. Qc6 {[%emt 0:01:53]} axb5 {[%emt 0:06:35]} 21. Nxb5 {[%emt 0:02:03]} Qb8 {[%emt 0:03:28]} 22. Bxd6 {[%emt 0:07:33]} cxd6 {[%emt 0:01:38]} 23. Rac1 {[%emt 0:01:52]} Bf8 {[%emt 0:02:53]} 24. Rd5 {[%emt 0:01:10]} Rb6 {[%emt 0:02:52]} 25. Qc7 {[%emt 0:01:41]} Rb7 {[%emt 0:04:46]} 26. Qa5 {[%emt 0:02:20]} Rc8 {[%emt 0:02:44]} 27. Qd2 {[%emt 0:00:17]} Rxc1+ {[%emt 0:01:28]} 28. Qxc1 {[%emt 0:00:01]} Rb6 {[%emt 0:01:27]} 29. Rd3 {[%emt 0:01:53]} Qb7 {[%emt 0:01:00]} 30. Rc3 {[%emt 0:00:11]} Qe4 {[%emt 0:01:40]} 31. Rc8 {[%emt 0:01:30]} Kg7 {[%emt 0:08:36]} 32. b3 {[%emt 0:01:32]} Rb7 {[%emt 0:01:08]} 33. Qc4 {[%emt 0:02:08]} Qf3 {[%emt 0:01:40]} 34. Rxf8 {[%emt 0:01:31]} Kxf8 {[%emt 0:03:50]} 35. a5 {[%emt 0:01:20]} Rb8 {[%emt 0:01:50]} 36. a6 {[%emt 0:00:22]} Qa8 {[%emt 0:01:59]} 37. a7 {[%emt 0:01:48]} Rxb5 {[%emt 0:00:28]} 38. Qxb5 {[%emt 0:00:31]} Qxa7 {[%emt 0:00:05]} 39. b4 {[%emt 0:00:38]} Qa1+ {[%emt 0:00:37]} 40. Kg2 {[%emt 0:00:26]} Qd4 {[%emt 0:01:00]} 41. Qb7 {[%emt 0:30:14]} d5 {[%emt 0:31:01]} 42. b5 {[%emt 0:01:37]} Qe4+ {[%emt 0:00:00]} 43. Kh2 {[%emt 0:00:00]} Kg7 {[%emt 0:00:00]} 44. b6 {[%emt 0:08:18]} 1/2-1/2

[Event "FIDE WSTC Open 65 2025"]
[Site "Prague"]
[Date "2025.02.17"]
[Round "1.45"]
[White "Kiss, Attila"]
[Black "Lagerborg, Krister"]
[Result "1-0"]
[Annotator "ChessBase"]
[ECO "B51"]
[WhiteElo "2276"]
[BlackElo "2031"]
[PlyCount "81"]
[EventDate "2025.02.17"]
[EventType "team-tourn"]
[EventCountry "CZE"]
[SourceTitle "playchess.com"]
[Source "ChessBase"]
[SourceQuality "1"]
[TimeControl "40/5400+30:1800+30"]

1. e4 {[%emt 0:00:05]} c5 {[%emt 0:00:06]} 2. Nf3 {[%emt 0:00:23]} d6 {[%emt 0:00:05]} 3. Bb5+ {[%emt 0:00:38]} Nd7 {[%emt 0:00:08]} 4. d4 {[%emt 0:00:33]} a6 {[%emt 0:01:24]} 5. Bxd7+ {[%emt 0:00:39]} Bxd7 {[%emt 0:00:33]} 6. Nc3 {[%emt 0:02:55]} e6 {[%emt 0:03:04]} 7. O-O {[%emt 0:02:41]} Be7 {[%emt 0:01:01]} 8. Re1 {[%emt 0:07:08]} b5 {[%emt 0:03:10]} 9. dxc5 {[%emt 0:05:33]} dxc5 {[%emt 0:00:10]} 10. e5 {[%emt 0:00:29]} Bc6 {[%emt 0:00:47]} 11. Qe2 {[%emt 0:01:22]} Qc7 {[%emt 0:03:16]} 12. a4 {[%emt 0:04:09]} Rb8 {[%emt 0:03:24]} 13. axb5 {[%emt 0:01:00]} axb5 {[%emt 0:00:10]} 14. Ne4 {[%emt 0:09:10]} Nh6 {[%emt 0:05:32]} 15. Bg5 {[%emt 0:08:24]} Bxe4 {[%emt 0:08:03]} 16. Qxe4 {[%emt 0:00:09]} Nf5 {[%emt 0:02:07]} 17. Bf4 {[%emt 0:08:31]} O-O {[%emt 0:12:26]} 18. c3 {[%emt 0:10:31]} Nh4 {[%emt 0:04:48]} 19. Nxh4 {[%emt 0:07:48]} Bxh4 {[%emt 0:00:46]} 20. Ra6 {[%emt 0:03:18]} Qb7 {[%emt 0:04:13]} 21. Qxb7 {[%emt 0:00:50]} Rxb7 {[%emt 0:00:06]} 22. Rc6 {[%emt 0:00:36]} c4 {[%emt 0:00:32]} 23. Ra1 {[%emt 0:00:44]} Be7 {[%emt 0:02:36]} 24. Be3 {[%emt 0:00:50]} h6 {[%emt 0:02:09]} 25. g3 {[%emt 0:01:42]} Rd8 {[%emt 0:06:40]} 26. Kf1 {[%emt 0:01:25]} g5 {[%emt 0:01:07]} 27. Ke2 {[%emt 0:00:58]} Kg7 {[%emt 0:01:44]} 28. g4 {[%emt 0:03:02]} Kg6 {[%emt 0:02:12]} 29. Kf3 {[%emt 0:01:18]} h5 {[%emt 0:01:10]} 30. h3 {[%emt 0:00:07]} hxg4+ {[%emt 0:00:24]} 31. hxg4 {[%emt 0:00:04]} Bf8 {[%emt 0:05:44]} 32. Ke4 {[%emt 0:02:39]} Bg7 {[%emt 0:03:08]} 33. Bd4 {[%emt 0:01:27]} Bf8 {[%emt 0:03:24]} 34. Raa6 {[%emt 0:01:07]} Rd5 {[%emt 0:02:20]} 35. Rxe6+ {[%emt 0:01:28]} fxe6 {[%emt 0:03:06]} 36. Rxe6+ {[%emt 0:00:08]} Kf7 {[%emt 0:02:46]} 37. Rf6+ {[%emt 0:00:07]} Ke8 {[%emt 0:00:18]} 38. Kxd5 {[%emt 0:00:13]} Rd7+ {[%emt 0:01:18]} 39. Kc6 {[%emt 0:04:19]} Rxd4 {[%emt 0:02:16]} 40. cxd4 {[%emt 0:00:16]} b4 {[%emt 0:00:20]} 41. Kd5 {[%emt 0:30:55]} 1-0

[Event "FIDE WSTC Open 65 2025"]
[Site "Prague"]
[Date "2025.02.17"]
[Round "1.46"]
[White "Akervall, Nils"]
[Black "Nemeth, Zoltan"]
[Result "1-0"]
[Annotator "RC"]
[ECO "B13"]
[WhiteElo "1948"]
[BlackElo "2192"]
[PlyCount "233"]
[EventDate "2025.02.17"]
[EventType "team-tourn"]
[EventCountry "CZE"]
[SourceTitle "playchess.com"]
[Source "ChessBase"]
[SourceQuality "1"]
[TimeControl "40/5400+30:1800+30"]

1. e4 {[%emt 0:00:03]} c6 {[%emt 0:00:21]} 2. d4 {[%emt 0:00:14]} d5 {[%emt 0:00:06]} 3. exd5 {[%emt 0:00:16]} cxd5 {[%emt 0:00:07]} 4. Bd3 {[%emt 0:00:17]} Nc6 {[%emt 0:00:08]} 5. c3 {[%emt 0:00:09]} Qc7 {[%emt 0:00:12]} 6. h3 {[%emt 0:00:36]} g6 {[%emt 0:03:11]} 7. Nf3 {[%emt 0:02:11]} Nh6 {[%emt 0:02:45]} 8. O-O {[%emt 0:03:56]} Bf5 {[%emt 0:00:13]} 9. Re1 {[%emt 0:00:44]} Bxd3 {[%emt 0:00:24]} 10. Qxd3 {[%emt 0:00:11]} Bg7 {[%emt 0:00:18]} 11. Nbd2 {[%emt 0:00:43]} O-O {[%emt 0:00:10]} 12. Nf1 {[%emt 0:03:48]} Nf5 {[%emt 0:00:15]} 13. Ne3 {[%emt 0:02:01]} Nxe3 {[%emt 0:00:22]} 14. Bxe3 {[%emt 0:00:48]} a6 {[%emt 0:06:14]} 15. Nd2 {[%emt 0:11:22]} Na5 {[%emt 0:01:37]} 16. b4 {[%emt 0:01:25]} Nc4 {[%emt 0:00:38]} 17. Nxc4 {[%emt 0:00:44]} dxc4 {[%emt 0:01:23]} 18. Qe4 {[%emt 0:03:16]} e6 {[%emt 0:02:45]} 19. Bf4 {[%emt 0:02:45]} Qd7 {[%emt 0:00:09]} 20. Be5 {[%emt 0:01:35]} f6 {[%emt 0:01:01]} 21. Bg3 {[%emt 0:02:46]} Rfe8 {[%emt 0:00:10]} 22. Re2 {[%emt 0:03:19]} Qd5 {[%emt 0:21:29]} 23. Rae1 {[%emt 0:03:26]} Qxe4 {[%emt 0:00:24]} 24. Rxe4 {[%emt 0:00:04]} Kf7 {[%emt 0:00:11]} 25. a4 {[%emt 0:06:56]} Rad8 {[%emt 0:07:32]} 26. a5 {[%emt 0:06:54]} Rd5 {[%emt 0:00:20]} 27. Bh2 {[%emt 0:11:33]} h5 {[%emt 0:00:22]} 28. h4 {[%emt 0:05:08]} f5 {[%emt 0:05:31]} 29. R4e2 {[%emt 0:00:58]} Bf6 {[%emt 0:00:59]} 30. Bg3 {[%emt 0:00:52]} Rb5 {[%emt 0:03:22]} 31. f4 {[%emt 0:05:25]} Rd5 {[%emt 0:04:22]} 32. Bf2 {[%emt 0:00:41]} Bd8 {[%emt 0:00:51]} 33. Ra2 {[%emt 0:01:39]} Bc7 {[%emt 0:00:17]} 34. g3 {[%emt 0:00:14]} Ke7 {[%emt 0:00:39]} 35. Kg2 {[%emt 0:00:30]} Kd7 {[%emt 0:00:23]} 36. Kf3 {[%emt 0:00:43]} Rd6 {[%emt 0:10:49]} 37. Bg1 {[%emt 0:07:00]} Kc6 {[%emt 0:03:24]} 38. Bf2 {[%emt 0:03:16]} Kb5 {[%emt 0:06:51]} 39. Bg1 {[%emt 0:05:00]} Rc6 {[%emt 0:04:00]} 40. Bf2 {[%emt 0:03:21]} Rd6 {[%emt 0:04:20]} 41. Bg1 {[%emt 0:30:27]} b6 {[%emt 0:38:51]} 42. axb6 {[%emt 0:03:12]} Bxb6 {[%emt 0:00:05]} 43. Bf2 {[%emt 0:00:00]} Ra8 {[%emt 0:00:00]} 44. Rb1 {[%emt 0:00:00]} Ra7 {[%emt 0:00:00]} 45. Bg1 {[%emt 0:00:00]} Kc6 {[%emt 0:00:00]} 46. Rba1 {[%emt 0:00:00]} Kb7 {[%emt 0:00:00]} 47. Bf2 {[%emt 0:00:00]} Ra8 {[%emt 0:00:00]} 48. Bg1 {[%emt 0:00:00]} Bc7 {[%emt 0:00:00]} 49. Bf2 {[%emt 0:00:00]} Rd5 {[%emt 0:00:00]} 50. Re1 {[%emt 0:00:00]} Rd6 {[%emt 0:00:00]} 51. Rb1 {[%emt 0:00:00]} Rc6 {[%emt 0:00:00]} 52. Bg1 {[%emt 0:00:00]} Rd8 {[%emt 0:01:41]} 53. Bf2 {[%emt 0:00:00]} Rd5 {[%emt 0:00:06]} 54. Bg1 {[%emt 0:00:00]} Rb5 {[%emt 0:00:07]} 55. Rba1 {[%emt 0:00:00]} a5 {[%emt 0:00:50]} 56. bxa5 {[%emt 0:00:00]} Ka6 {[%emt 0:00:03]} 57. Be3 {[%emt 0:00:00]} Rxa5 {[%emt 0:00:26]} 58. Bd2 {[%emt 0:00:00]} Rxa2 {[%emt 0:00:20]} 59. Rxa2+ {[%emt 0:00:00]} Ba5 {[%emt 0:01:06]} 60. Ke3 {[%emt 0:00:08]} Rd6 {[%emt 0:02:34]} 61. Ke2 {[%emt 0:01:58]} Rd7 {[%emt 0:01:27]} 62. Kd1 {[%emt 0:01:36]} Kb5 {[%emt 0:01:40]} 63. Kc2 {[%emt 0:00:17]} Rb7 {[%emt 0:00:34]} 64. Ra1 {[%emt 0:00:41]} Bc7 {[%emt 0:00:57]} 65. Re1 {[%emt 0:00:52]} Rb6 {[%emt 0:00:09]} 66. Ra1 {[%emt 0:00:30]} Kc6 {[%emt 0:01:35]} 67. Re1 {[%emt 0:00:32]} Kd5 {[%emt 0:00:15]} 68. Re3 {[%emt 0:01:19]} Ra6 {[%emt 0:00:19]} 69. Kb2 {[%emt 0:00:25]} Bd6 {[%emt 0:00:05]} 70. Be1 {[%emt 0:01:03]} Ba3+ {[%emt 0:00:30]} 71. Kc2 {[%emt 0:00:24]} Bd6 {[%emt 0:00:58]} 72. Kb2 {[%emt 0:00:08]} Rb6+ {[%emt 0:00:05]} 73. Kc2 {[%emt 0:00:13]} Rb3 {[%emt 0:00:07]} 74. Bd2 {[%emt 0:00:54]} Bc7 {[%emt 0:00:36]} 75. Be1 {[%emt 0:00:33]} Ra3 {[%emt 0:01:39]} 76. Kb2 {[%emt 0:00:15]} Ra5 {[%emt 0:00:12]} 77. Bd2 {[%emt 0:00:54]} Kd6 {[%emt 0:00:13]} 78. Re1 {[%emt 0:00:34]} Kd7 {[%emt 0:00:12]} 79. Re3 {[%emt 0:00:21]} Bd6 {[%emt 0:00:15]} 80. Re1 {[%emt 0:00:27]} Rb5+ {[%emt 0:00:59]} 81. Kc2 {[%emt 0:00:47]} Ba3 {[%emt 0:00:14]} 82. Bc1 {[%emt 0:01:07]} Bd6 {[%emt 0:00:29]} 83. Bd2 {[%emt 0:00:26]} Ra5 {[%emt 0:01:24]} 84. Kb2 {[%emt 0:00:09]} Ra3 {[%emt 0:01:01]} 85. Be3 {[%emt 0:01:06]} Rb3+ {[%emt 0:00:11]} 86. Kc2 {[%emt 0:00:09]} Ba3 {[%emt 0:00:05]} 87. Bc1 {[%emt 0:00:25]} Be7 {[%emt 0:01:31]} 88. Bd2 {[%emt 0:00:28]} Ra3 {[%emt 0:00:23]} 89. Kb2 {[%emt 0:00:13]} Ra5 {[%emt 0:00:47]} 90. Be3 {[%emt 0:00:33]} Bd6 {[%emt 0:00:51]} 91. Bd2 {[%emt 0:00:17]} Bc7 {[%emt 0:00:17]} 92. Be3 {[%emt 0:00:24]} Kc6 {[%emt 0:00:09]} 93. Bd2 {[%emt 0:00:21]} Kd5 {[%emt 0:00:05]} 94. Re3 {[%emt 0:00:34]} Bd6 {[%emt 0:00:23]} 95. Re1 {[%emt 0:00:26]} Ra6 {[%emt 0:00:46]} 96. Re3 {[%emt 0:00:34]} Ra8 {[%emt 0:00:07]} 97. Re1 {[%emt 0:00:18]} Ra3 {[%emt 0:01:20]} 98. Re3 {[%emt 0:00:26]} Ra4 {[%emt 0:00:53]} 99. Re1 {[%emt 0:00:28]} Ra8 {[%emt 0:00:16]} 100. Re3 {[%emt 0:00:21]} Ra3 {[%emt 0:00:21]} 101. Re1 {[%emt 0:00:22]} Rb3+ {[%emt 0:00:15]} 102. Kc2 {[%emt 0:00:03]} Ba3 {[%emt 0:01:03]} 103. Bc1 {[%emt 0:00:32]} Bxc1 {[%emt 0:00:59]} 104. Rxc1 {[%emt 0:00:08]} Ke4 {[%emt 0:00:07]} 105. Re1+ {[%emt 0:01:46]} Kf3 {[%emt 0:00:04]} 106. Rxe6 {[%emt 0:00:48]} Kxg3 {[%emt 0:00:06]} 107. Rxg6+ {[%emt 0:00:41]} Kxh4 {[%emt 0:00:31]} 108. d5 {[%emt 0:01:09]} Rb5 {[%emt 0:00:10]} 109. d6 {[%emt 0:00:27]} Rd5 {[%emt 0:00:44]} 110. Rg5 {[%emt 0:00:26]} Rxd6 {[%emt 0:00:25]} 111. Rxf5 {[%emt 0:00:08]} Re6 {[%emt 0:00:17]} 112. Kd2 {[%emt 0:01:17]} Re4 {[%emt 0:00:08]} 113. Rf8 {[%emt 0:00:28]} Kg4 {[%emt 0:00:47]} 114. f5 {[%emt 0:00:11]} h4 {[%emt 0:00:15]} 115. f6 {[%emt 0:00:24]} Kf5 {[%emt 0:00:04]} 116. f7 {[%emt 0:00:23]} Kf6 {[%emt 0:00:03]} 117. Re8 {[%emt 0:00:44]} 1-0